bitfinex/quotes_BTCUSD_20250508
["timestamp","ask_amount","ask_price","bid_price","bid_amount"]
[1746738332648,0.37463474,102290.0,102280.0,0.001]
[1746738333351,0.34455474,102290.0,102280.0,0.001]
[1746738333658,1.03735474,102290.0,102280.0,0.46497823]
[1746738333857,1.03735474,102290.0,102280.0,0.001]
[1746738334279,1.0660141,102290.0,102280.0,0.001]
[1746738334482,1.17171161,102290.0,102280.0,0.001]
[1746738334698,1.07104469,102290.0,102280.0,0.001]
[1746738336343,1.07104469,102290.0,102280.0,0.01011477]
[1746738337362,1.52379161,102290.0,102280.0,0.01011477]
[1746738338476,1.52379161,102290.0,102280.0,0.001]
[1746738338902,1.5306264,102290.0,102280.0,0.001]
[1746738339294,1.63129332,102290.0,102280.0,0.00051372]
[1746738340076,1.63129332,102290.0,102280.0,0.00021562]
[1746738340532,0.24701617,102270.0,102260.0,0.0174784]
[1746738341041,0.23183016,102270.0,102260.0,0.0174784]
[1746738341257,0.24813016,102270.0,102260.0,0.0174784]
[1746738341462,0.35792617,102270.0,102260.0,0.0174784]
[1746738341677,0.36476096,102270.0,102260.0,0.0174784]
[1746738342084,0.36476096,102270.0,102260.0,0.0204784]
[1746738342279,0.71688096,102270.0,102260.0,0.0174784]
[1746738342425,0.71788096,102270.0,102260.0,0.0174784]
[1746738342827,0.80922485,102270.0,102260.0,0.0174784]
[1746738343033,0.81022485,102270.0,102260.0,0.0174784]
[1746738344001,0.81250096,102270.0,102260.0,0.0174784]
[1746738344224,0.84440096,102270.0,102260.0,0.0174784]
[1746738345611,0.84830266,102270.0,102260.0,0.0174784]
[1746738346415,0.86653844,102270.0,102260.0,0.0174784]
[1746738346935,1.68051667,102270.0,102260.0,0.0174784]
[1746738347239,1.82118359,102270.0,102260.0,0.0184784]
[1746738347637,1.85155962,102270.0,102260.0,0.0184784]
[1746738348364,1.82118359,102270.0,102260.0,0.0184784]
[1746738348609,1.38257681,102270.0,102260.0,0.0174784]
[1746738348798,1.82918359,102270.0,102260.0,0.0194784]
[1746738348934,1.36520536,102270.0,102260.0,0.0194784]
[1746738349137,1.82918359,102270.0,102260.0,0.0194784]
[1746738349377,1.36520536,102270.0,102260.0,0.0194784]
[1746738350097,1.82918359,102270.0,102260.0,0.0194784]
[1746738350315,1.36520536,102270.0,102260.0,0.0194784]
[1746738350509,1.82918359,102270.0,102260.0,0.0194784]
[1746738350954,1.82918359,102270.0,102260.0,0.0102626]
[1746738351161,1.84372444,102270.0,102260.0,0.0102626]
[1746738351367,1.84372444,102270.0,102240.0,0.002]
[1746738351368,0.58805824,102250.0,102240.0,0.002]
[1746738351520,0.79132635,102250.0,102240.0,0.002]
[1746738351718,0.80528719,102250.0,102240.0,0.002]
[1746738351925,1.26926542,102250.0,102240.0,0.002]
[1746738352150,0.81528719,102250.0,102240.0,0.002]
[1746738352379,0.73092178,102250.0,102240.0,0.002]
[1746738352574,0.73823521,102250.0,102240.0,0.002]
[1746738353236,0.74223521,102250.0,102240.0,0.003]
[1746738353452,1.21363765,102250.0,102240.0,0.003]
[1746738353770,0.74365942,102250.0,102240.0,0.004]
[1746738353963,1.35830457,102250.0,102240.0,0.004]
[1746738354175,0.88949459,102250.0,102240.0,0.004]
[1746738354372,1.35347282,102250.0,102240.0,0.004]
[1746738354571,0.74882767,102250.0,102240.0,0.004]
[1746738354780,0.87822767,102250.0,102240.0,0.004]
[1746738355576,0.87734757,102250.0,102240.0,0.004]
[1746738356139,0.91992336,102250.0,102240.0,0.004]
[1746738356339,1.34390159,102250.0,102240.0,0.004]
[1746738356559,1.49456851,102250.0,102240.0,0.004]
[1746738356768,1.44456851,102250.0,102240.0,0.004]
[1746738356968,0.98059028,102250.0,102240.0,0.004]
[1746738357177,0.87992336,102250.0,102240.0,0.004]
[1746738357949,0.73052336,102250.0,102240.0,0.004]
[1746738358151,1.19262336,102250.0,102240.0,0.004]
[1746738358339,1.09223644,102250.0,102240.0,0.004]
[1746738358642,1.09211644,102250.0,102240.0,0.004]
[1746738360092,1.09331644,102250.0,102240.0,0.46797823]
[1746738360284,1.09331644,102250.0,102240.0,0.004]
[1746738360497,1.07508066,102250.0,102240.0,0.004]
[1746738360715,1.06824587,102250.0,102240.0,0.004]
[1746738360923,1.05911678,102250.0,102240.0,0.004]
[1746738361146,0.01825811,102250.0,102240.0,1.41906423]
[1746738361349,0.02933563,102260.0,102250.0,0.23947856]
[1746738361543,0.19557989,102260.0,102250.0,0.6112292]
[1746738361772,0.18667989,102260.0,102250.0,0.6112292]
[1746738362047,0.19033358,102260.0,102250.0,1.0112292]
[1746738362201,0.01343191,102260.0,102250.0,1.23616691]
[1746738362400,0.04276802,102260.0,102250.0,0.77218887]
[1746738362601,0.04276802,102260.0,102250.0,0.54725097]
[1746738362602,0.22856959,102260.0,102250.0,0.54725097]
[1746738362807,0.21879117,102260.0,102250.0,1.02100915]
[1746738363012,0.21879117,102260.0,102250.0,0.76240979]
[1746738363215,0.21979117,102260.0,102250.0,1.030789]
[1746738363629,0.21979117,102260.0,102250.0,1.24355089]
[1746738363844,0.01443191,102260.0,102250.0,1.26310973]
[1746738364045,0.01543191,102260.0,102250.0,1.26710973]
[1746738364249,0.03498903,102260.0,102250.0,0.8031315]
[1746738364379,0.24034772,102260.0,102250.0,0.55863409]
[1746738364590,0.21101238,102260.0,102250.0,1.02261232]
[1746738364792,0.22079137,102260.0,102250.0,1.02261232]
[1746738365004,0.22079137,102260.0,102250.0,1.03239227]
[1746738365203,0.20533468,102280.0,102270.0,0.01955578]
[1746738365426,0.19752253,102290.0,102280.0,0.36324085]
[1746738365652,0.01177593,102290.0,102280.0,1.60695947]
[1746738365837,0.021551,102290.0,102280.0,1.61673606]
[1746738365992,0.03132693,102290.0,102280.0,1.26327162]
[1746738366195,0.03132693,102290.0,102280.0,1.25349541]
[1746738366440,0.20731117,102310.0,102290.0,0.23462462]
[1746738366636,0.20731117,102310.0,102300.0,0.76210336]
[1746738366637,0.002,102310.0,102300.0,0.76210336]
[1746738366811,0.21703244,102310.0,102300.0,0.10066692]
[1746738367022,0.21703244,102310.0,102300.0,0.4]
[1746738367580,0.21703244,102310.0,102300.0,0.86397823]
[1746738367781,0.21703244,102310.0,102300.0,0.401]
[1746738368210,0.21703244,102310.0,102300.0,0.87851908]
[1746738368561,0.21703244,102310.0,102300.0,0.74]
[1746738368771,0.21703244,102310.0,102300.0,0.743]
[1746738369386,0.21703244,102310.0,102300.0,0.744]
[1746738370247,0.25003244,102310.0,102300.0,0.004]
[1746738370391,0.35069936,102310.0,102300.0,0.004]
[1746738370780,0.37808993,102310.0,102300.0,0.004]
[1746738371007,0.35069936,102310.0,102300.0,0.004]
[1746738371426,0.41310819,102310.0,102300.0,0.004]
[1746738371651,0.35069936,102310.0,102300.0,0.004]
[1746738372085,0.3780953,102310.0,102300.0,0.004]
[1746738372347,0.5060553,102310.0,102300.0,0.004]
[1746738372591,0.36131244,102310.0,102300.0,0.004]
[1746738372763,0.36131244,102310.0,102300.0,0.46797823]
[1746738372984,0.38870902,102310.0,102300.0,0.004]
[1746738373210,0.36131244,102310.0,102300.0,0.004]
[1746738373437,0.3887088,102310.0,102300.0,0.004]
[1746738373683,0.36131244,102310.0,102300.0,0.004]
[1746738374143,0.71339244,102310.0,102300.0,0.004]
[1746738374488,0.74479244,102310.0,102300.0,0.004]
[1746738375783,0.87285621,102310.0,102300.0,0.004]
[1746738375971,0.84545936,102310.0,102300.0,0.004]
[1746738376328,0.87285326,102310.0,102300.0,0.004]
[1746738377459,0.85889591,102310.0,102300.0,0.004]
[1746738377919,0.86867012,102310.0,102300.0,0.004]
[1746738379047,0.86703012,102310.0,102300.0,0.004]
[1746738382327,0.2150741,102290.0,102280.0,1.26034778]
[1746738383174,1.03974102,102290.0,102280.0,0.003]
[1746738383509,1.06813741,102290.0,102280.0,0.009]
[1746738383713,1.06913741,102290.0,102280.0,0.014]
[1746738383913,0.37633741,102290.0,102280.0,0.014]
[1746738384064,0.39140471,102290.0,102280.0,0.008]
[1746738384273,0.38033741,102290.0,102280.0,0.009]
[1746738384996,0.51521741,102290.0,102280.0,0.003]
[1746738385292,0.51821741,102290.0,102280.0,0.004]
[1746738386296,0.51821741,102290.0,102280.0,0.005]
[1746738386297,0.52221741,102290.0,102280.0,0.005]
[1746738387041,1.06576169,102290.0,102280.0,0.005]
[1746738387243,0.60178346,102290.0,102280.0,0.005]
[1746738387466,1.42312326,102290.0,102280.0,0.00368164]
[1746738387622,1.42412326,102290.0,102280.0,0.00368164]
[1746738388223,0.96014503,102290.0,102280.0,0.00368164]
[1746738388436,0.88057898,102290.0,102280.0,0.00368164]
[1746738388837,0.92083458,102290.0,102280.0,0.00368164]
[1746738389037,1.38481281,102290.0,102280.0,0.00368164]
[1746738389400,1.43481281,102290.0,102280.0,0.00368164]
[1746738389773,1.42503717,102290.0,102280.0,0.00368164]
[1746738389967,1.53547973,102290.0,102280.0,0.00368164]
[1746738390301,1.53140285,102290.0,102280.0,0.00368164]
[1746738390473,1.58140285,102290.0,102280.0,0.00368164]
[1746738390674,1.5359437,102290.0,102280.0,0.00368164]
[1746738390986,1.1112944,102270.0,102260.0,0.001]
[1746738391202,1.32716909,102270.0,102260.0,0.0011432]
[1746738391415,1.29456548,102270.0,102260.0,0.0011432]
[1746738392703,1.29756548,102270.0,102260.0,0.0021432]
[1746738393397,1.29756548,102270.0,102260.0,0.0011432]
[1746738393398,1.29456548,102270.0,102260.0,0.0011432]
[1746738393410,1.35046548,102270.0,102260.0,0.0021432]
[1746738393512,0.63545824,102250.0,102240.0,0.002]
[1746738393692,1.69026339,102250.0,102240.0,0.002]
[1746738394090,1.80093031,102250.0,102240.0,0.002]
[1746738394973,1.80393031,102250.0,102240.0,0.002]
[1746738395672,1.17928516,102250.0,102240.0,0.002]
[1746738395867,1.23228516,102250.0,102240.0,0.003]
[1746738396186,1.70626339,102250.0,102240.0,0.003]
[1746738396925,1.72080424,102250.0,102240.0,0.003]
[1746738397326,1.71080424,102250.0,102240.0,0.003]
[1746738397549,1.81147116,102250.0,102240.0,0.003]
[1746738399379,1.81347116,102250.0,102240.0,0.003]
[1746738400920,2.50627116,102250.0,102240.0,0.003]
[1746738401107,2.45327116,102250.0,102240.0,0.003]
[1746738401505,2.45927116,102250.0,102240.0,0.003]
[1746738401729,2.45427116,102250.0,102240.0,0.002]
[1746738402046,2.91824939,102250.0,102240.0,0.002]
[1746738402496,2.92724939,102250.0,102240.0,0.002]
[1746738402714,2.23444939,102250.0,102240.0,0.002]
[1746738402865,2.33134939,102250.0,102240.0,0.002]
[1746738403315,2.24044939,102250.0,102240.0,0.002]
[1746738403520,1.77647116,102250.0,102240.0,0.002]
[1746738403732,2.00217727,102250.0,102240.0,0.002]
[1746738404883,1.7571351,102250.0,102240.0,0.002]
[1746738404954,1.65251425,102250.0,102240.0,0.002]
[1746738405165,1.6670551,102250.0,102240.0,0.002]
[1746738405365,2.05189727,102250.0,102240.0,0.002]
[1746738405573,2.00189727,102250.0,102240.0,0.002]
[1746738408725,0.95618335,102230.0,102220.0,0.002]
[1746738408936,1.05685027,102230.0,102220.0,0.002]
[1746738409878,1.06499377,102230.0,102220.0,0.002]
[1746738410267,1.1604789,102230.0,102220.0,0.00191065]
[1746738410474,1.06499377,102230.0,102220.0,0.00191065]
[1746738411091,1.06999377,102230.0,102220.0,0.00191065]
[1746738412213,1.42235377,102230.0,102220.0,0.00191065]
[1746738412407,1.56199385,102230.0,102220.0,0.0018215]
[1746738412632,1.51199385,102230.0,102220.0,0.0018215]
[1746738412834,1.66266077,102230.0,102220.0,0.0018215]
[1746738413163,1.66986017,102230.0,102220.0,0.0018215]
[1746738413367,1.09981023,102230.0,102220.0,0.0018215]
[1746738413573,1.20241023,102230.0,102220.0,0.0018215]
[1746738414029,1.5472524,102230.0,102220.0,0.0018215]
[1746738414439,0.68857015,102230.0,102220.0,0.0179215]
[1746738414668,1.22497117,102230.0,102220.0,0.0018215]
[1746738414902,0.81737015,102230.0,102220.0,0.0018215]
[1746738415100,1.16221232,102230.0,102220.0,0.0018215]
[1746738415347,1.19741232,102230.0,102220.0,0.0018215]
[1746738415546,0.21524243,102210.0,102200.0,0.32442796]
[1746738415756,0.31590935,102210.0,102200.0,0.32442796]
[1746738416634,0.36706757,102210.0,102200.0,0.32442796]
[1746738416830,0.36806757,102210.0,102200.0,0.32642796]
[1746738417550,0.71290974,102210.0,102200.0,0.32642796]
[1746738417771,0.35828399,102210.0,102200.0,0.32642796]
[1746738418198,0.36906757,102210.0,102200.0,0.32742796]
[1746738418434,0.72146757,102210.0,102200.0,0.32742796]
[1746738418915,0.75366757,102210.0,102200.0,0.32742796]
[1746738419369,0.70250935,102210.0,102200.0,0.32742796]
[1746738420985,0.68680935,102210.0,102200.0,0.32742796]
[1746738421828,0.70280935,102210.0,102200.0,0.32742796]
[1746738423031,1.58296955,102210.0,102200.0,0.32742796]
[1746738423691,1.58296955,102210.0,102200.0,0.32542796]
[1746738423692,1.58196955,102210.0,102200.0,0.32542796]
[1746738423902,1.73263647,102210.0,102200.0,0.32542796]
[1746738424250,1.73363647,102210.0,102200.0,0.32642796]
[1746738424646,1.68363647,102210.0,102200.0,0.32642796]
[1746738425097,1.61909562,102210.0,102200.0,0.32642796]
[1746738425300,1.02713349,102210.0,102200.0,0.32642796]
[1746738425557,1.01713349,102210.0,102200.0,0.32642796]
[1746738425788,1.13187264,102210.0,102200.0,0.32542796]
[1746738426007,1.14087264,102210.0,102200.0,0.32442796]
[1746738426210,1.72265976,102210.0,102200.0,0.32542796]
[1746738426426,1.77565976,102210.0,102200.0,0.32642796]
[1746738426762,1.79396489,102210.0,102200.0,0.32642796]
[1746738426960,1.32834554,102210.0,102200.0,0.32642796]
[1746738427205,1.79396489,102210.0,102200.0,0.32642796]
[1746738427434,1.79396489,102210.0,102200.0,0.32626969]
[1746738427610,1.22767862,102210.0,102200.0,0.32626969]
[1746738427815,1.69329797,102210.0,102200.0,0.32626969]
[1746738428031,1.20937349,102210.0,102200.0,0.32626969]
[1746738428238,1.67499284,102210.0,102200.0,0.32626969]
[1746738428445,1.20937349,102210.0,102200.0,0.32626969]
[1746738428593,1.13543264,102210.0,102200.0,0.32626969]
[1746738428844,0.63209264,102210.0,102200.0,0.32626969]
[1746738429003,0.76281264,102210.0,102200.0,0.32626969]
[1746738429185,0.76281264,102210.0,102200.0,0.34276969]
[1746738429393,0.76281264,102210.0,102200.0,0.35586969]
[1746738429803,0.53142572,102210.0,102200.0,0.82148904]
[1746738430016,0.70280243,102210.0,102200.0,1.16148904]
[1746738430420,0.70280243,102210.0,102200.0,1.17064704]
[1746738430818,0.70280243,102210.0,102200.0,1.16148904]
[1746738431024,0.70280243,102210.0,102200.0,0.69586969]
[1746738431369,0.70280243,102210.0,102200.0,1.16148904]
[1746738431566,0.70280243,102210.0,102200.0,1.56148904]
[1746738431775,0.70280243,102210.0,102200.0,1.09586969]
[1746738431957,0.70180243,102210.0,102200.0,1.56048904]
[1746738432154,0.56864243,102210.0,102200.0,1.7717246]
[1746738432471,0.56964243,102210.0,102200.0,1.88517616]
[1746738432674,0.55985914,102210.0,102200.0,1.87539152]
[1746738432878,0.3544,102210.0,102200.0,2.37036439]
[1746738433088,0.3544,102210.0,102200.0,2.35424845]
[1746738433089,0.3257,102210.0,102200.0,2.35424845]
[1746738433288,0.3257,102210.0,102200.0,2.36339633]
[1746738433506,0.0021435,102230.0,102220.0,0.57954457]
[1746738433706,0.0021435,102230.0,102220.0,1.14583084]
[1746738433875,0.03148717,102230.0,102220.0,1.14583084]
[1746738434074,0.04126884,102230.0,102220.0,1.14583084]
[1746738434321,0.04126884,102230.0,102220.0,1.57519284]
[1746738434507,0.24668788,102230.0,102220.0,1.55562826]
[1746738434839,0.22712607,102230.0,102220.0,1.56541069]
[1746738435177,0.22712607,102230.0,102220.0,1.60584287]
[1746738435378,0.2173444,102230.0,102220.0,1.60584287]
[1746738435612,0.2183444,102230.0,102220.0,1.60006034]
[1746738435791,0.20856264,102230.0,102220.0,1.60006034]
[1746738436189,0.20856264,102230.0,102220.0,1.46659195]
[1746738436423,0.20856264,102230.0,102220.0,1.48915653]
[1746738436424,0.0041435,102230.0,102220.0,1.48915653]
[1746738436817,0.0031435,102230.0,102220.0,1.48615653]
[1746738437229,0.02370588,102230.0,102220.0,1.49830441]
[1746738437850,0.0041435,102230.0,102220.0,1.49830441]
[1746738438055,0.01177918,102250.0,102240.0,0.23474023]
[1746738438391,0.01177918,102250.0,102240.0,0.92130576]
[1746738438392,0.21715824,102250.0,102240.0,0.92130576]
[1746738438530,0.21715824,102250.0,102240.0,0.90676491]
[1746738438730,0.21715824,102250.0,102240.0,1.21524587]
[1746738439697,0.21715824,102250.0,102240.0,1.21724587]
[1746738439830,0.21815824,102250.0,102240.0,1.41286402]
[1746738440037,0.21815824,102250.0,102240.0,1.42364473]
[1746738440251,0.003,102250.0,102240.0,2.00447185]
[1746738440475,0.01277909,102250.0,102240.0,2.0240326]
[1746738440661,0.03233774,102250.0,102240.0,2.0240326]
[1746738440856,0.003,102250.0,102240.0,2.0240326]
[1746738441054,0.31517842,102260.0,102250.0,0.23947856]
[1746738441258,0.34451472,102260.0,102250.0,0.80576483]
[1746738441662,0.35429294,102260.0,102250.0,0.81491271]
[1746738441892,0.35429294,102260.0,102250.0,1.21491271]
[1746738442052,0.5498735,102260.0,102250.0,1.20513343]
[1746738442248,0.54109508,102260.0,102250.0,1.20513343]
[1746738442751,0.54109508,102260.0,102250.0,1.19535387]
[1746738442962,0.22791657,102260.0,102250.0,1.21491328]
[1746738443154,0.21813777,102260.0,102250.0,0.989975]
[1746738443418,0.21813777,102260.0,102250.0,1.19535377]
[1746738443769,0.20835888,102260.0,102250.0,1.19535377]
[1746738443991,0.20835888,102260.0,102250.0,1.20513343]
[1746738444215,0.21813758,102260.0,102250.0,1.2149129]
[1746738444410,0.21813758,102260.0,102250.0,1.20513343]
[1746738444608,0.21813758,102260.0,102250.0,1.19535377]
[1746738444815,0.227916,102260.0,102250.0,1.19535377]
[1746738444992,0.21813758,102260.0,102250.0,0.989975]
[1746738445202,0.21813758,102260.0,102250.0,1.19535397]
[1746738445412,0.21813758,102260.0,102250.0,1.20513382]
[1746738445614,0.21813758,102260.0,102250.0,1.19535397]
[1746738445816,0.21813758,102260.0,102250.0,0.85404998]
[1746738446035,0.20835888,102260.0,102250.0,0.85404998]
[1746738446524,0.32219436,102280.0,102250.0,0.85404998]
[1746738446525,0.002,102290.0,102280.0,0.22487174]
[1746738446726,0.002,102310.0,102300.0,0.56482777]
[1746738446925,0.01954623,102320.0,102310.0,0.34]
[1746738447151,0.00977297,102320.0,102310.0,1.52913728]
[1746738447351,0.21501123,102320.0,102310.0,1.27971949]
[1746738447548,0.21501123,102320.0,102310.0,1.28949361]
[1746738447549,0.02931795,102320.0,102310.0,1.28949361]
[1746738447750,0.002,102330.0,102320.0,0.22478382]
[1746738447949,0.02154336,102330.0,102320.0,1.14302131]
[1746738448157,0.01191538,102330.0,102320.0,1.15279399]
[1746738448363,0.03145903,102330.0,102320.0,1.17042339]
[1746738448602,0.02168711,102330.0,102320.0,1.18019617]
[1746738448739,0.00214384,102330.0,102320.0,1.18019617]
[1746738448937,0.00214384,102330.0,102320.0,1.64517653]
[1746738449322,0.02268701,102330.0,102320.0,1.68506561]
[1746738449475,0.02268701,102330.0,102320.0,1.25434343]
[1746738449883,0.02368701,102330.0,102320.0,1.23006815]
[1746738450080,0.02368701,102330.0,102320.0,1.25434343]
[1746738450281,0.00314384,102330.0,102320.0,1.71834847]
[1746738450578,0.00314384,102330.0,102320.0,2.14762847]
[1746738450778,0.002,102350.0,102340.0,0.57928074]
[1746738451124,0.23648727,102350.0,102340.0,0.8556824]
[1746738451260,0.22671841,102350.0,102340.0,1.00920339]
[1746738451533,0.22671841,102350.0,102340.0,1.06202846]
[1746738451766,0.22671841,102350.0,102340.0,1.62207371]
[1746738451767,0.002,102350.0,102340.0,1.62207371]
[1746738451951,0.01276953,102350.0,102340.0,1.62207371]
[1746738452149,0.003,102350.0,102340.0,1.62207371]
[1746738452391,0.00700663,102350.0,102340.0,1.89365671]
[1746738453221,0.00800663,102350.0,102340.0,1.95365671]
[1746738453425,0.03130392,102370.0,102360.0,0.23913683]
[1746738453709,0.04155077,102370.0,102360.0,0.8585073]
[1746738453937,0.00247884,102370.0,102360.0,1.67151992]
[1746738454166,0.02201437,102370.0,102360.0,1.67151992]
[1746738454378,0.03178247,102370.0,102360.0,2.07151992]
[1746738454704,0.03178247,102370.0,102360.0,1.60751488]
[1746738454902,0.22715335,102370.0,102360.0,1.32344898]
[1746738455125,0.22715335,102370.0,102360.0,0.90437301]
[1746738455399,0.20761696,102370.0,102360.0,0.77674369]
[1746738455635,0.22261696,102370.0,102360.0,0.75200758]
[1746738456292,0.19535184,102380.0,102370.0,0.60158304]
[1746738456514,0.19549543,102380.0,102370.0,0.60158304]
[1746738457529,0.29616235,102380.0,102370.0,0.26358304]
[1746738457750,0.29616235,102380.0,102370.0,0.26558304]
[1746738458653,0.29616235,102380.0,102370.0,0.26358304]
[1746738459127,0.29616235,102380.0,102370.0,0.26158304]
[1746738459351,0.22759543,102380.0,102370.0,0.26158304]
[1746738459796,0.22859543,102380.0,102370.0,0.26158304]
[1746738460008,0.21279543,102380.0,102370.0,1.06558808]
[1746738460218,0.19649543,102380.0,102370.0,1.06558808]
[1746738460444,0.19649543,102380.0,102370.0,1.07456531]
[1746738460688,0.19649543,102380.0,102370.0,0.61056027]
[1746738460935,0.19649543,102380.0,102370.0,1.07456531]
[1746738461384,0.19649543,102380.0,102370.0,1.26993504]
[1746738461592,0.19649543,102380.0,102370.0,1.06558808]
[1746738461725,0.19649543,102380.0,102370.0,1.07535656]
[1746738461927,0.19649543,102380.0,102370.0,1.28049468]
[1746738462128,0.19649543,102380.0,102370.0,1.67072629]
[1746738462538,0.19649543,102380.0,102370.0,1.46558808]
[1746738462995,0.19649543,102380.0,102370.0,1.6707262]
[1746738463133,0.03044494,102380.0,102370.0,1.69026211]
[1746738463353,0.04021161,102380.0,102370.0,1.69026211]
[1746738463973,0.00114359,102380.0,102370.0,1.80546988]
[1746738463977,0.0206774,102380.0,102370.0,1.8144658]
[1746738464170,0.03044474,102380.0,102370.0,1.8144658]
[1746738464396,0.0206774,102380.0,102370.0,1.8144658]
[1746738464596,0.00114359,102380.0,102370.0,1.82182151]
[1746738464825,0.01176581,102390.0,102380.0,0.57919294]
[1746738465031,0.02153181,102390.0,102380.0,2.14070982]
[1746738465243,0.002,102390.0,102380.0,1.92268222]
[1746738465667,0.01176581,102390.0,102380.0,2.32268222]
[1746738465863,0.02153181,102390.0,102380.0,1.55286082]
[1746738466069,0.0252306,102390.0,102380.0,1.68956382]
[1746738466487,0.03499679,102390.0,102380.0,1.71652622]
[1746738466725,0.03499679,102390.0,102380.0,1.71752622]
[1746738466921,0.03499679,102390.0,102380.0,1.58282322]
[1746738467130,0.0252306,102390.0,102380.0,1.71952622]
[1746738467329,0.04476308,102390.0,102380.0,1.58282322]
[1746738467667,0.03499718,102390.0,102380.0,1.69052682]
[1746738467838,0.03499718,102390.0,102380.0,1.55586101]
[1746738468001,0.02523089,102390.0,102380.0,1.70029387]
[1746738468197,0.03499718,102390.0,102380.0,1.70029387]
[1746738468609,0.23032875,102390.0,102380.0,1.69052701]
[1746738468806,0.04476356,102390.0,102380.0,1.56562787]
[1746738469032,0.04476356,102390.0,102380.0,1.56562321]
[1746738469245,0.04476356,102390.0,102380.0,1.70022621]
[1746738469464,0.24986218,102390.0,102380.0,1.33120407]
[1746738469650,0.22056341,102390.0,102380.0,1.33120407]
[1746738469865,0.22056341,102390.0,102380.0,1.3409716]
[1746738470205,0.21079693,102390.0,102380.0,1.33120407]
[1746738470444,0.22589693,102390.0,102380.0,0.41199126]
[1746738470622,0.21079693,102390.0,102380.0,1.2159963]
[1746738470821,0.21079693,102390.0,102380.0,0.8759963]
[1746738471050,0.21079693,102390.0,102380.0,1.2159963]
[1746738472178,0.20709814,102390.0,102380.0,1.2159963]
[1746738473180,0.2107487,102390.0,102380.0,1.2159963]
[1746738473381,0.2107487,102390.0,102380.0,1.41134695]
[1746738473538,0.01541637,102390.0,102380.0,1.55585616]
[1746738473735,0.01541628,102390.0,102380.0,1.55585616]
[1746738473963,0.03494829,102390.0,102380.0,1.55585616]
[1746738474164,0.02518219,102390.0,102380.0,1.55585616]
[1746738474584,0.03494829,102390.0,102380.0,1.55585616]
[1746738475337,0.03494829,102390.0,102380.0,1.5625195]
[1746738475538,0.01541628,102390.0,102380.0,1.5625195]
[1746738475751,0.03494809,102390.0,102380.0,1.5625195]
[1746738476604,0.02518209,102390.0,102380.0,1.5933195]
[1746738476812,0.03494809,102390.0,102380.0,1.5625195]
[1746738477135,0.04471419,102390.0,102380.0,1.5625195]
[1746738477598,0.04471419,102390.0,102380.0,1.6212195]
[1746738477801,0.04471419,102390.0,102380.0,1.50053303]
[1746738478198,0.05448114,102390.0,102380.0,1.50053303]
[1746738478432,0.03494847,102390.0,102380.0,1.15721446]
[1746738478629,0.03494847,102390.0,102380.0,1.50053303]
[1746738478870,0.02518237,102390.0,102380.0,1.50053303]
[1746738479173,0.03494856,102390.0,102380.0,1.49386969]
[1746738479407,0.02518237,102390.0,102380.0,1.83718826]
[1746738479830,0.00565056,102390.0,102380.0,1.83718826]
[1746738480031,0.00565056,102390.0,102380.0,2.85219626]
[1746738480445,0.01541628,102390.0,102380.0,1.83718826]
[1746738480659,0.21074785,102390.0,102380.0,1.9478714]
[1746738480862,0.02518247,102390.0,102380.0,1.84089095]
[1746738481014,0.02618247,102390.0,102380.0,1.84589095]
[1746738481214,0.02718247,102390.0,102380.0,1.50757238]
[1746738481425,0.03694876,102390.0,102380.0,1.50757238]
[1746738481587,0.02718247,102390.0,102380.0,1.50086969]
[1746738481800,0.03694866,102390.0,102380.0,1.50086969]
[1746738482638,0.01741637,102390.0,102380.0,1.84418826]
[1746738482848,0.02718237,102390.0,102380.0,1.84418826]
[1746738483067,0.00765056,102390.0,102380.0,3.21101109]
[1746738483274,0.01741637,102390.0,102380.0,3.21101109]
[1746738483495,0.00765056,102390.0,102380.0,1.85089509]
[1746738483695,0.00765056,102390.0,102380.0,1.86589509]
[1746738483902,0.00765056,102390.0,102380.0,3.06252209]
[1746738484426,0.03129238,102410.0,102400.0,0.55816183]
[1746738484634,0.21682199,102410.0,102400.0,0.55816183]
[1746738484834,0.21682199,102410.0,102400.0,0.56715309]
[1746738485153,0.2374579,102410.0,102400.0,0.38683887]
[1746738485306,0.2374579,102410.0,102400.0,0.7935457]
[1746738485521,0.2374579,102410.0,102400.0,0.79022713]
[1746738485674,0.2374579,102410.0,102400.0,0.45122713]
[1746738485675,0.33812482,102410.0,102400.0,0.45122713]
[1746738485899,0.78211031,102410.0,102400.0,0.01669809]
[1746738486103,0.24528504,102380.0,102370.0,0.29551908]
[1746738486303,0.36592504,102380.0,102370.0,0.63551908]
[1746738486501,0.36592504,102380.0,102370.0,0.29551908]
[1746738486753,0.46659196,102380.0,102370.0,0.29551908]
[1746738487174,0.46659196,102380.0,102370.0,0.63551908]
[1746738487375,0.46659196,102380.0,102370.0,0.63851908]
[1746738487551,0.46659196,102380.0,102370.0,0.63551908]
[1746738489383,0.46659196,102380.0,102370.0,0.60158304]
[1746738490034,0.46649196,102380.0,102370.0,0.60158304]
[1746738490574,0.46649196,102380.0,102370.0,0.94490161]
[1746738490766,0.46649196,102380.0,102370.0,0.60158304]
[1746738492707,0.80981053,102380.0,102370.0,0.26158304]
[1746738492919,1.50261053,102380.0,102370.0,0.26158304]
[1746738493257,1.50261053,102380.0,102370.0,0.22938304]
[1746738493383,1.51715138,102380.0,102370.0,0.22938304]
[1746738493599,1.86715138,102380.0,102370.0,0.21278304]
[1746738493825,1.20175378,102380.0,102370.0,0.19718304]
[1746738494070,1.39446046,102380.0,102370.0,0.13278304]
[1746738494350,1.38726046,102380.0,102370.0,0.11618304]
[1746738494737,1.35985806,102380.0,102370.0,0.11618304]
[1746738494965,0.55513802,102370.0,102360.0,0.002]
[1746738495196,0.99912351,102370.0,102360.0,0.00214359]
[1746738495644,1.09979043,102370.0,102360.0,0.00214359]
[1746738495864,1.22076123,102370.0,102360.0,0.00214359]
[1746738496288,1.31076123,102370.0,102360.0,0.00214359]
[1746738496501,1.68959145,102370.0,102360.0,0.00214359]
[1746738496738,1.22530208,102370.0,102360.0,0.00214359]
[1746738496995,1.23130208,102370.0,102360.0,0.00314359]
[1746738497260,1.23630208,102370.0,102360.0,0.00314359]
[1746738497487,1.22530208,102370.0,102360.0,0.00214359]
[1746738497715,1.23130208,102370.0,102360.0,0.00314359]
[1746738497929,1.23930208,102370.0,102360.0,0.00414359]
[1746738498128,1.28930208,102370.0,102360.0,0.00414359]
[1746738499172,1.36986208,102370.0,102360.0,0.00414359]
[1746738499585,0.21501076,102320.0,102310.0,1.09127606]
[1746738499812,0.33557076,102320.0,102310.0,1.10019867]
[1746738500009,0.21501104,102320.0,102310.0,1.09042484]
[1746738500212,0.32579836,102320.0,102310.0,1.09042484]
[1746738500437,0.00977249,102320.0,102310.0,1.10997163]
[1746738500637,0.02931795,102320.0,102310.0,1.09787163]
[1746738500825,0.01954489,102320.0,102310.0,1.10235047]